bitfinex/quotes_BTCUSD_20250830
["timestamp","ask_amount","ask_price","bid_price","bid_amount"]
[1756543365318,0.94160546,108810.0,108800.0,0.23649201]
[1756543365534,0.94160546,108810.0,108800.0,0.23139201]
[1756543365729,1.3695021,108810.0,108800.0,0.23139201]
[1756543367137,0.94160546,108810.0,108800.0,0.23139201]
[1756543369283,0.92434664,108810.0,108800.0,0.23139201]
[1756543369486,0.94160093,108810.0,108800.0,0.23139201]
[1756543370252,1.12540756,108810.0,108800.0,0.04756849]
[1756543371095,0.94160093,108810.0,108800.0,0.23139201]
[1756543373475,1.36949757,108810.0,108800.0,0.23139201]
[1756543374194,0.94160093,108810.0,108800.0,0.23139201]
[1756543374436,0.94160093,108810.0,108800.0,0.23644201]
[1756543377659,0.51370429,108810.0,108800.0,0.23644201]
[1756543377882,0.94160093,108810.0,108800.0,0.23644201]
[1756543378777,0.51370429,108810.0,108800.0,0.23444201]
[1756543378989,0.94160093,108810.0,108800.0,0.23444201]
[1756543380058,0.92434664,108810.0,108800.0,0.23444201]
[1756543380297,0.94160234,108810.0,108800.0,0.23444201]
[1756543380745,0.94160234,108810.0,108800.0,0.23544201]
[1756543382139,0.60160234,108810.0,108800.0,0.23544201]
[1756543382575,0.0193857,108810.0,108800.0,0.29283821]
[1756543382750,0.60152234,108810.0,108800.0,0.29283821]
[1756543385343,0.60152234,108810.0,108800.0,0.23544201]
[1756543385953,0.94152355,108810.0,108800.0,0.23544201]
[1756543388460,1.55322682,108810.0,108800.0,0.04656849]
[1756543388666,1.55969858,108810.0,108800.0,0.04656849]
[1756543388785,1.55322682,108810.0,108800.0,0.04656849]
[1756543388994,1.55322682,108810.0,108800.0,0.23039201]
[1756543389199,1.36942019,108810.0,108800.0,0.23039201]
[1756543389402,1.35216328,108810.0,108800.0,0.23039201]
[1756543389621,1.36942116,108810.0,108800.0,0.23039201]
[1756543390030,1.55322779,108810.0,108800.0,0.23039201]
[1756543390918,1.55619779,108810.0,108800.0,0.01893549]
[1756543391091,1.56266943,108810.0,108800.0,0.01893549]
[1756543391306,1.59030543,108810.0,108800.0,0.01893549]
[1756543393399,1.59030543,108810.0,108800.0,0.20275901]
[1756543393589,1.58733543,108810.0,108800.0,0.20275901]
[1756543397211,1.43309543,108810.0,108800.0,0.20275901]
[1756543397413,1.58729543,108810.0,108800.0,0.20275901]
[1756543399933,1.59031543,108810.0,108800.0,0.01893549]
[1756543400150,1.59031384,108810.0,108800.0,0.01893549]
[1756543400758,1.59031403,108810.0,108800.0,0.01893549]
[1756543407712,1.58729403,108810.0,108800.0,0.01893549]
[1756543408496,1.59031403,108810.0,108800.0,0.01893549]
[1756543410580,1.58729403,108810.0,108800.0,0.01893549]
[1756543410729,1.56356591,108810.0,108800.0,0.01893549]
[1756543410911,1.58729434,108810.0,108800.0,0.01893549]
[1756543411501,1.5700373,108810.0,108800.0,0.01893549]
[1756543411709,1.58729441,108810.0,108800.0,0.01893549]
[1756543414506,1.58729569,108810.0,108800.0,0.01893549]
[1756543418247,1.43309569,108810.0,108800.0,0.01893549]
[1756543418852,1.58725569,108810.0,108800.0,0.01893549]
[1756543420549,1.43309569,108810.0,108800.0,0.01893549]
[1756543420959,1.58725569,108810.0,108800.0,0.01893549]
[1756543421369,1.58078393,108810.0,108800.0,0.01893549]
[1756543421567,1.58726261,108810.0,108800.0,0.01893549]
[1756543421800,1.58726261,108810.0,108800.0,0.02406549]
[1756543424781,1.58726261,108810.0,108800.0,0.01893549]
[1756543427031,1.43310261,108810.0,108800.0,0.01893549]
[1756543427240,1.58722261,108810.0,108800.0,0.02091549]
[1756543427541,1.58722261,108810.0,108800.0,0.02406549]
[1756543429770,0.73142933,108810.0,108800.0,0.02306549]
[1756543429987,1.58722261,108810.0,108800.0,0.02306549]
[1756543430210,1.58722261,108810.0,108800.0,0.02206549]
[1756543430369,1.58722273,108810.0,108800.0,0.02206549]
[1756543430594,1.58722273,108810.0,108800.0,0.02306549]
[1756543431979,1.41583967,108810.0,108800.0,0.20688901]
[1756543432184,1.58722303,108810.0,108800.0,0.20688901]
[1756543433238,1.24509303,108810.0,108800.0,0.20688901]
[1756543433494,1.24680303,108810.0,108800.0,0.20688901]
[1756543434245,0.39100975,108810.0,108800.0,0.20688901]
[1756543434451,1.24680303,108810.0,108800.0,0.20688901]
[1756543435545,1.58680303,108810.0,108800.0,0.20688901]
[1756543438451,1.56953967,108810.0,108800.0,0.20688901]
[1756543438661,1.58680303,108810.0,108800.0,0.20688901]
[1756543441249,1.58680303,108810.0,108800.0,0.02306549]
[1756543441453,1.58680303,108810.0,108800.0,0.01793549]
[1756543441687,1.56953967,108810.0,108800.0,0.01793549]
[1756543441885,1.58680304,108810.0,108800.0,0.02108549]
[1756543442450,1.58680303,108810.0,108800.0,0.02108549]
[1756543447928,1.58680303,108810.0,108800.0,0.01793549]
[1756543449904,1.58680303,108810.0,108800.0,0.02108549]
[1756543451456,1.58680303,108810.0,108800.0,0.01793549]
[1756543452324,1.56306591,108810.0,108800.0,0.01793549]
[1756543452535,1.59612182,108810.0,108800.0,0.01793549]
[1756543453392,1.58679731,108810.0,108800.0,0.01793549]
[1756543457356,1.58679731,108810.0,108800.0,0.01693549]
[1756543458181,2.04394773,108810.0,108800.0,0.01693549]
[1756543458384,2.16693592,108810.0,108800.0,0.01693549]
[1756543458587,2.16693592,108810.0,108800.0,0.01793549]
[1756543458806,2.13799774,108810.0,108800.0,0.01993549]
[1756543459003,2.13799774,108810.0,108800.0,0.01893549]
[1756543459775,2.22629406,108810.0,108800.0,0.01893549]
[1756543460586,2.22629406,108810.0,108800.0,0.01693549]
[1756543461798,2.67579406,108810.0,108800.0,0.01693549]
[1756543462889,2.67472406,108810.0,108800.0,0.01693549]
[1756543463089,2.67471537,108810.0,108800.0,0.01693549]
[1756543463919,2.67471521,108810.0,108800.0,0.01693549]
[1756543467058,2.67578521,108810.0,108800.0,0.01693549]
[1756543467478,2.67471521,108810.0,108800.0,0.01693549]
[1756543471533,2.67571521,108810.0,108800.0,0.01693549]
[1756543472904,2.69665703,108810.0,108800.0,0.01693549]
[1756543473565,2.67086448,108810.0,108800.0,0.01693549]
[1756543473778,2.1567867,108810.0,108800.0,0.01693549]
[1756543474195,2.15678686,108810.0,108800.0,0.01693549]
[1756543474404,2.15778686,108810.0,108800.0,0.01693549]
[1756543474609,2.15878686,108810.0,108800.0,0.01693549]
[1756543477357,2.12953308,108810.0,108800.0,0.01693549]
[1756543478011,2.2178294,108810.0,108800.0,0.01693549]
[1756543478839,2.24708318,108810.0,108800.0,0.01693549]
[1756543480838,2.24708334,108810.0,108800.0,0.01693549]
[1756543483824,1.57506038,108810.0,108800.0,0.02183549]
[1756543484005,0.9752515,108810.0,108800.0,0.20565901]
[1756543484207,0.78714672,108810.0,108800.0,0.20565901]
[1756543484465,0.94761574,108810.0,108800.0,0.20565901]
[1756543484828,1.37551238,108810.0,108800.0,0.20565901]
[1756543485860,1.22151238,108810.0,108800.0,0.20565901]
[1756543486061,1.37551238,108810.0,108800.0,0.20565901]
[1756543486880,1.22151238,108810.0,108800.0,0.20565901]
[1756543487124,1.37551238,108810.0,108800.0,0.20565901]
[1756543488383,0.5197191,108810.0,108800.0,0.20565901]
[1756543488554,1.37551238,108810.0,108800.0,0.20565901]
[1756543490176,1.36904354,108810.0,108800.0,0.20565901]
[1756543492794,1.36704354,108810.0,108800.0,0.20565901]
[1756543494059,1.36700354,108810.0,108800.0,0.20565901]
[1756543494971,1.34975328,108810.0,108800.0,0.20565901]
[1756543495150,1.3669925,108810.0,108800.0,0.20565901]
[1756543496308,1.36699104,108810.0,108800.0,0.20565901]
[1756543497668,1.55079767,108810.0,108800.0,0.20565901]
[1756543501540,1.39683767,108810.0,108800.0,0.20565901]
[1756543501757,1.55079767,108810.0,108800.0,0.20565901]
[1756543503982,1.36699104,108810.0,108800.0,0.20565901]
[1756543504693,1.36698968,108810.0,108800.0,0.20565901]
[1756543513287,1.37346163,108810.0,108800.0,0.20565901]
[1756543515307,1.34975328,108810.0,108800.0,0.20565901]
[1756543515525,1.37348556,108810.0,108800.0,0.20565901]
[1756543516587,1.55900219,108810.0,108800.0,0.20565901]
[1756543522454,1.55900524,108810.0,108800.0,0.20565901]
[1756543526038,1.55900635,108810.0,108800.0,0.20565901]
[1756543526417,0.70321307,108810.0,108800.0,0.20565901]
[1756543526621,1.55900635,108810.0,108800.0,0.20565901]
[1756543532989,1.55900539,108810.0,108800.0,0.20565901]
[1756543535535,1.55900539,108810.0,108800.0,0.20369901]
[1756543536427,1.55900539,108810.0,108800.0,0.01693549]
[1756543536636,1.55900523,108810.0,108800.0,0.20075901]
[1756543537045,1.55900523,108810.0,108800.0,0.20382901]
[1756543538574,1.21900523,108810.0,108800.0,0.20382901]
[1756543540302,1.21900512,108810.0,108800.0,0.20382901]
[1756543541878,1.55900512,108810.0,108800.0,0.20382901]
[1756543545862,1.55900512,108810.0,108800.0,0.02000549]
[1756543546105,1.55900512,108810.0,108800.0,0.02230328]
[1756543547292,1.55900492,108810.0,108800.0,0.02230328]
[1756543549922,1.55900492,108810.0,108800.0,0.02434328]
[1756543550091,1.40504492,108810.0,108800.0,0.2081668]
[1756543550324,1.40504492,108810.0,108800.0,0.20586901]
[1756543550325,1.55888492,108810.0,108800.0,0.20586901]
[1756543550498,1.55888492,108810.0,108800.0,0.02204549]
[1756543550806,1.55888492,108810.0,108800.0,0.02434328]
[1756543551409,1.55888492,108810.0,108800.0,0.02534328]
[1756543551643,1.55888492,108810.0,108800.0,0.02734328]
[1756543556380,1.40504492,108810.0,108800.0,0.02734328]
[1756543556559,1.55884492,108810.0,108800.0,0.02734328]
[1756543557768,1.53510991,108810.0,108800.0,0.02734328]
[1756543557994,1.56963452,108810.0,108800.0,0.02223328]
[1756543558828,1.56963452,108810.0,108800.0,0.02123328]
[1756543559041,1.56963377,108810.0,108800.0,0.01923328]
[1756543560006,1.56963377,108810.0,108800.0,0.01693549]
[1756543560007,1.99860041,108810.0,108800.0,0.01693549]
[1756543560189,2.05679237,108810.0,108800.0,0.01693549]
[1756543560642,2.10431379,108810.0,108800.0,0.01693549]
[1756543561002,2.07537561,108810.0,108800.0,0.01693549]
[1756543561433,2.04612183,108810.0,108800.0,0.01693549]
[1756543561612,2.04712183,108810.0,108800.0,0.01693549]
[1756543562513,2.05749119,108810.0,108800.0,0.01693549]
[1756543564800,2.04670089,108810.0,108800.0,0.01693549]
[1756543565165,2.04563089,108810.0,108800.0,0.01693549]
[1756543565765,2.49513089,108810.0,108800.0,0.01693549]
[1756543566560,2.31132426,108810.0,108800.0,0.01693549]
[1756543566758,2.49513089,108810.0,108800.0,0.01693549]
[1756543567408,2.49511125,108810.0,108800.0,0.01693549]
[1756543568239,2.4951109,108810.0,108800.0,0.01693549]
[1756543568447,2.77707541,108810.0,108800.0,0.01693549]
[1756543568602,2.7969434,108810.0,108800.0,0.01693549]
[1756543569866,2.70864708,108810.0,108800.0,0.01693549]
[1756543571386,2.68877909,108810.0,108800.0,0.01693549]
[1756543571603,2.23927909,108810.0,108800.0,0.01693549]
[1756543571992,2.25914064,108810.0,108800.0,0.01693549]
[1756543574308,2.23927582,108810.0,108800.0,0.01693549]
[1756543575038,2.32757214,108810.0,108800.0,0.01693549]
[1756543575839,2.34742919,108810.0,108800.0,0.01693549]
[1756543577940,2.34095198,108810.0,108800.0,0.01693549]
[1756543578140,2.34741438,108810.0,108800.0,0.01693549]
[1756543578572,2.34741372,108810.0,108800.0,0.01693549]
[1756543578879,2.38821109,108810.0,108800.0,0.01693549]
[1756543581591,2.38821014,108810.0,108800.0,0.01693549]
[1756543581795,2.23441014,108810.0,108800.0,0.01693549]
[1756543581973,2.35927196,108810.0,108800.0,0.01693549]
[1756543582170,2.35820196,108810.0,108800.0,0.01693549]
[1756543586371,2.38821014,108810.0,108800.0,0.01693549]
[1756543586645,2.81610678,108810.0,108800.0,0.01693549]
[1756543586848,2.84094845,108810.0,108800.0,0.01693549]
[1756543588358,2.68714845,108810.0,108800.0,0.01693549]
[1756543588564,2.8409531,108810.0,108800.0,0.01693549]
[1756543589416,2.8399531,108810.0,108800.0,0.01693549]
[1756543589727,2.8719574,108810.0,108800.0,0.01693549]
[1756543589871,3.73075068,108810.0,108800.0,0.01693549]
[1756543590462,3.73375068,108810.0,108800.0,0.01693549]
[1756543590631,3.73575068,108810.0,108800.0,0.01693549]
[1756543591458,3.70274638,108810.0,108800.0,0.01693549]
[1756543592088,3.70274547,108810.0,108800.0,0.01693549]
[1756543593284,3.70274547,108810.0,108790.0,0.0004]
[1756543593285,0.52382352,108800.0,108790.0,0.0004]
[1756543593502,1.28456379,108800.0,108790.0,0.0004]
[1756543593683,3.42575699,108800.0,108790.0,0.0004]
[1756543594092,3.30089517,108800.0,108790.0,0.0004]
[1756543594310,3.45469517,108800.0,108790.0,0.0004]
[1756543594556,3.45569517,108800.0,108790.0,0.0004]
[1756543594753,3.45938117,108800.0,108790.0,0.0004]
[1756543594944,3.45938117,108800.0,108790.0,0.0035]
[1756543594945,3.43044299,108800.0,108790.0,0.0035]
[1756543595647,3.43144299,108800.0,108790.0,0.0035]
[1756543596703,0.72465116,108800.0,108790.0,0.0035]
[1756543596924,3.445831,108800.0,108790.0,0.0035]
[1756543597571,3.41657722,108800.0,108790.0,0.0035]
[1756543598177,3.26277722,108800.0,108790.0,0.0004]
[1756543598382,3.41657722,108800.0,108790.0,0.0035]
[1756543598789,3.47067267,108800.0,108790.0,0.0004]
[1756543598997,3.49314853,108800.0,108790.0,0.0004]
[1756543599172,3.49961351,108800.0,108790.0,1e-08]
[1756543599414,0.52385732,108780.0,108770.0,0.0031]
[1756543599613,1.41865557,108780.0,108770.0,0.0031]
[1756543599817,2.27444885,108780.0,108770.0,0.00514]
[1756543600354,2.27813485,108780.0,108770.0,0.00514]
[1756543602314,2.27813485,108780.0,108770.0,0.00614]
[1756543603140,2.2963165,108780.0,108770.0,0.00614]
[1756543603586,2.33759319,108780.0,108770.0,0.00614]
[1756543604138,2.33930319,108780.0,108770.0,0.00614]
[1756543604309,2.78880319,108780.0,108770.0,0.00614]
[1756543607283,2.78880319,108780.0,108770.0,0.0041]
[1756543607483,4.10143129,108780.0,108770.0,0.0041]
[1756543608419,4.10143129,108780.0,108770.0,0.00614]
[1756543609639,4.0949675,108780.0,108770.0,0.00614]
[1756543609866,4.10141028,108780.0,108770.0,0.00614]
[1756543610121,3.65191028,108780.0,108770.0,0.001]
[1756543610283,8.67672933,108780.0,108770.0,0.001]
[1756543610456,8.70327563,108780.0,108770.0,0.001]
[1756543610656,8.70973446,108780.0,108770.0,0.001]
[1756543611239,8.55593446,108780.0,108770.0,0.001]
[1756543611458,8.70973446,108780.0,108770.0,0.004]
[1756543611892,8.70973446,108780.0,108770.0,0.003]
[1756543612087,8.70973217,108780.0,108770.0,0.003]
[1756543612314,8.71173217,108780.0,108770.0,0.003]
[1756543614036,7.42804225,108780.0,108770.0,0.003]
[1756543614474,0.52387423,108770.0,108760.0,0.0034]
[1756543614615,6.7837836,108770.0,108760.0,0.0034]
[1756543614823,1.7837836,108770.0,108760.0,0.00546]
[1756543615234,1.7874706,108770.0,108760.0,0.00546]
[1756543615691,1.78794885,108770.0,108760.0,0.00546]
[1756543616013,1.78794885,108770.0,108760.0,0.00646]
[1756543616766,1.55601473,108770.0,108760.0,0.00646]
[1756543616991,1.6553416,108770.0,108760.0,0.00646]
[1756543618654,1.68427978,108770.0,108760.0,0.00646]
[1756543618857,1.68427363,108770.0,108760.0,0.00646]
[1756543620254,1.67781709,108770.0,108760.0,0.00646]
[1756543620460,1.77257043,108770.0,108760.0,0.00646]
[1756543620887,1.392334,108770.0,108760.0,0.00646]
[1756543621985,1.36339582,108770.0,108760.0,0.00646]
[1756543623042,1.72433464,108770.0,108760.0,0.00646]
[1756543625139,1.57053464,108770.0,108760.0,0.00646]
[1756543625350,1.72433464,108770.0,108760.0,0.00646]
[1756543625957,1.78213027,108770.0,108760.0,0.00646]
[1756543626174,1.72433464,108770.0,108760.0,0.00646]
[1756543627541,1.67414204,108770.0,108760.0,0.00646]
[1756543627975,1.65428499,108770.0,108760.0,0.00646]
[1756543628130,1.56130498,108770.0,108760.0,0.00646]
[1756543628296,1.58116292,108770.0,108760.0,0.00646]
[1756543629336,1.56130498,108770.0,108760.0,0.00646]
[1756543629813,1.55487232,108770.0,108760.0,0.00646]
[1756543630035,1.56133715,108770.0,108760.0,0.00646]
[1756543630868,1.56133767,108770.0,108760.0,0.00646]
[1756543631119,1.58119877,108770.0,108760.0,0.00646]
[1756543633698,2.00909541,108770.0,108760.0,0.00646]
[1756543633906,2.02836127,108770.0,108760.0,0.00646]
[1756543634461,2.00909541,108770.0,108760.0,0.00646]
[1756543636304,1.98923431,108770.0,108760.0,0.00646]
[1756543636695,1.98923431,108770.0,108760.0,0.00546]
[1756543637766,1.98923431,108770.0,108760.0,0.00746]
[1756543638011,0.88366344,108770.0,108760.0,0.00746]
[1756543638163,1.37377644,108770.0,108760.0,0.00746]
[1756543638365,1.55765067,108770.0,108760.0,0.00746]
[1756543638794,1.55765067,108770.0,108760.0,0.00846]
[1756543638989,1.37377644,108770.0,108760.0,0.00846]
[1756543639216,1.55118584,108770.0,108760.0,0.00846]
[1756543640440,1.55118283,108770.0,108760.0,0.00846]
[1756543642879,1.39738283,108770.0,108760.0,0.00846]
[1756543643080,1.55118283,108770.0,108760.0,0.00846]
[1756543645892,1.3673086,108770.0,108760.0,0.00846]
[1756543647493,1.55118283,108770.0,108760.0,0.00846]
[1756543649750,1.55289283,108770.0,108760.0,0.00846]
[1756543650838,2.01116208,108770.0,108760.0,0.0064]
[1756543651038,1.99392501,108770.0,108760.0,0.0034]
[1756543651260,2.01762449,108770.0,108760.0,0.0034]
[1756543651637,2.011161,108770.0,108760.0,0.0034]
[1756543653409,2.01762563,108770.0,108760.0,0.0034]
[1756543653989,2.011161,108770.0,108760.0,0.0034]
[1756543654188,2.01762654,108770.0,108760.0,0.0034]
[1756543655059,1.98725393,108770.0,108760.0,0.0034]
[1756543658084,1.98726839,108770.0,108760.0,0.0034]
[1756543658752,2.0813184,108770.0,108760.0,0.0034]
[1756543658968,2.11057218,108770.0,108760.0,0.0034]
[1756543659174,2.13822018,108770.0,108760.0,0.0034]
[1756543659371,2.2265165,108770.0,108760.0,0.0034]
[1756543659575,2.2763935,108770.0,108760.0,0.0034]
[1756543659775,2.29626886,108770.0,108760.0,0.0034]
[1756543660889,2.29519886,108770.0,108760.0,0.0034]
[1756543661107,2.29626886,108770.0,108760.0,0.0034]
[1756543661767,2.2962731,108770.0,108760.0,0.0034]
[1756543665161,2.2952031,108770.0,108760.0,0.0034]
[1756543665568,2.11246492,108770.0,108760.0,0.0034]
[1756543665795,2.26626492,108770.0,108760.0,0.0034]
[1756543666230,2.11246492,108770.0,108760.0,0.0034]
[1756543666429,2.26626492,108770.0,108760.0,0.0034]
[1756543666576,2.11246492,108770.0,108760.0,0.0034]
[1756543667141,2.0241686,108770.0,108760.0,0.0034]
[1756543667359,2.1779686,108770.0,108760.0,0.00643]
[1756543667611,2.1779686,108770.0,108760.0,0.00844]
[1756543668957,2.1779686,108770.0,108760.0,0.00643]
[1756543669173,2.1779686,108770.0,108760.0,0.0034]
[1756543669833,2.26626492,108770.0,108760.0,0.0034]
[1756543672146,2.26625487,108770.0,108760.0,0.0034]
[1756543674670,2.26637487,108770.0,108760.0,0.0034]
[1756543679807,2.33709487,108770.0,108760.0,0.0034]
[1756543681890,2.33710615,108770.0,108760.0,0.0034]
[1756543682640,2.36604433,108770.0,108760.0,0.0034]
[1756543684123,2.33710615,108770.0,108760.0,0.0034]
[1756543685116,2.31985418,108770.0,108760.0,0.0034]
[1756543685325,2.3371092,108770.0,108760.0,0.0034]
[1756543685504,2.3381792,108770.0,108760.0,0.0034]
[1756543685709,2.36711738,108770.0,108760.0,0.0034]
[1756543688374,2.39086643,108770.0,108760.0,0.0034]
[1756543688797,2.39193643,108770.0,108760.0,0.0034]
[1756543689963,2.39086643,108770.0,108760.0,0.0034]
[1756543691494,2.23694643,108770.0,108760.0,0.0034]
[1756543691720,2.39074643,108770.0,108760.0,0.0034]
[1756543692358,2.36593996,108770.0,108760.0,0.0034]
[1756543692786,2.36593996,108770.0,108760.0,0.0024]
[1756543692921,2.36593996,108770.0,108760.0,0.0004]
[1756543694000,2.36693996,108770.0,108760.0,0.0004]
[1756543694441,2.36693996,108770.0,108760.0,0.00361]
[1756543695146,1.93904332,108770.0,108760.0,0.00361]
[1756543695301,2.27864364,108770.0,108760.0,0.00361]
[1756543699366,2.27864104,108770.0,108760.0,0.00361]
[1756543700723,2.27864104,108770.0,108760.0,0.00561]
[1756543702939,2.27864159,108770.0,108760.0,0.00361]
[1756543703260,2.27864169,108770.0,108760.0,0.00361]
[1756543703518,2.36693801,108770.0,108760.0,0.00361]
[1756543703674,2.36693801,108770.0,108760.0,0.0004]
[1756543705508,2.33768423,108770.0,108760.0,0.0004]
[1756543707003,2.36693801,108770.0,108760.0,0.0004]
[1756543708355,2.39175706,108770.0,108760.0,0.0004]
[1756543709967,2.39175846,108770.0,108760.0,0.0004]
[1756543713489,2.39176465,108770.0,108760.0,0.0004]
[1756543714240,2.39176455,108770.0,108760.0,0.0004]
[1756543714897,2.23796455,108770.0,108760.0,0.0004]
[1756543715027,2.39176455,108770.0,108760.0,0.0004]
[1756543717082,2.39176653,108770.0,108760.0,0.0004]
[1756543723375,2.36151275,108770.0,108760.0,0.0004]
[1756543723622,2.36451275,108770.0,108760.0,0.0004]
[1756543723964,2.34076814,108770.0,108760.0,0.0004]
[1756543724196,2.3665118,108770.0,108760.0,0.0004]
[1756543724572,2.3665111,108770.0,108760.0,0.0004]
[1756543726481,2.27821478,108770.0,108760.0,0.0004]
[1756543726832,2.12441478,108770.0,108760.0,0.00363]
[1756543727030,2.27817478,108770.0,108760.0,0.00563]
[1756543727251,2.2492366,108770.0,108760.0,0.00563]
[1756543730853,2.2492366,108770.0,108760.0,0.00363]
[1756543731054,2.33753292,108770.0,108760.0,0.00363]
[1756543731303,2.36678669,108770.0,108760.0,0.00363]
[1756543734501,2.26122295,108770.0,108760.0,0.00363]
[1756543734630,2.27848629,108770.0,108760.0,0.00363]
[1756543735469,2.27548629,108770.0,108760.0,0.00363]
[1756543735670,2.27348629,108770.0,108760.0,0.00363]
[1756543735880,2.27448629,108770.0,108760.0,0.00363]
[1756543736292,2.30342447,108770.0,108760.0,0.00363]
[1756543736492,2.30542447,108770.0,108760.0,0.00363]
[1756543739883,2.30542447,108770.0,108760.0,0.00562]
[1756543740092,2.30542447,108770.0,108760.0,0.0004]
[1756543740307,2.39372079,108770.0,108760.0,0.0004]
[1756543740683,2.39372079,108770.0,108760.0,0.00346]
[1756543741083,2.38724819,108770.0,108760.0,0.00346]
[1756543741434,2.39372304,108770.0,108760.0,0.00346]
[1756543743421,2.39372304,108770.0,108760.0,0.00545]
[1756543743634,2.30542672,108770.0,108760.0,0.00346]
[1756543744037,2.28816083,108770.0,108760.0,0.00346]
[1756543744237,2.30542816,108770.0,108760.0,0.00346]
[1756543744684,2.30542816,108770.0,108760.0,0.00545]
[1756543744935,2.30542843,108770.0,108760.0,0.00545]
[1756543745122,2.39372475,108770.0,108760.0,0.00545]
[1756543747303,2.39372475,108770.0,108760.0,0.00346]
[1756543747690,2.39372501,108770.0,108760.0,0.00346]
[1756543749352,2.39372501,108770.0,108760.0,0.00545]
[1756543749861,2.39372501,108770.0,108760.0,0.00346]
[1756543752611,2.39372501,108770.0,108760.0,0.0004]
[1756543753306,2.39372501,108770.0,108760.0,0.00346]
[1756543753512,2.39372501,108770.0,108760.0,0.0004]
[1756543754575,2.39372601,108770.0,108760.0,0.0004]
[1756543754773,2.39372939,108770.0,108760.0,0.0004]
[1756543758594,0.54484686,108750.0,108740.0,0.00346]
[1756543758733,2.30807546,108750.0,108740.0,0.00346]
[1756543758933,2.30978546,108750.0,108740.0,0.00346]
[1756543759366,2.31621546,108750.0,108740.0,0.00346]
[1756543759593,2.31621546,108750.0,108740.0,0.00562]
[1756543759850,2.31621546,108750.0,108740.0,0.00662]
[1756543761297,2.31621546,108750.0,108740.0,0.00562]
[1756543761712,2.31621546,108750.0,108740.0,0.00662]
[1756543761924,2.31621732,108750.0,108740.0,0.00662]
[1756543763702,0.89138275,108750.0,108740.0,0.00662]
[1756543763941,1.74717603,108750.0,108740.0,0.00662]
[1756543764393,1.72729881,108750.0,108740.0,0.00662]
[1756543764564,2.15519545,108750.0,108740.0,0.00662]
[1756543764995,1.72729881,108750.0,108740.0,0.00662]
[1756543765352,1.81556456,108750.0,108740.0,0.00662]
[1756543765749,1.81556428,108750.0,108740.0,0.00662]
[1756543766567,1.81600428,108750.0,108740.0,0.00662]
[1756543768572,1.83587391,108750.0,108740.0,0.00662]
[1756543770788,1.74757759,108750.0,108740.0,0.00662]
[1756543771124,1.59341759,108750.0,108740.0,0.00662]
[1756543771342,1.74749759,108750.0,108740.0,0.00662]
[1756543773882,1.50043758,108750.0,108740.0,0.00662]
[1756543774102,1.63460795,108750.0,108740.0,0.00662]
[1756543774442,1.63460795,108750.0,108740.0,0.01364]
[1756543775354,1.4428051,108750.0,108740.0,0.01364]
[1756543775542,1.62671314,108750.0,108740.0,0.01364]
[1756543775751,1.6267141,108750.0,108740.0,0.01364]
[1756543776362,1.60946494,108750.0,108740.0,0.01364]
[1756543776606,1.62671457,108750.0,108740.0,0.01364]
[1756543778723,1.55599457,108750.0,108740.0,0.01364]
[1756543783233,1.40195457,108750.0,108740.0,0.01364]
[1756543783439,0.78313431,108750.0,108740.0,0.01364]
[1756543783642,0.78313431,108750.0,108740.0,0.01593906]
[1756543783643,0.42789664,108750.0,108740.0,0.01593906]
[1756543783819,0.58197664,108750.0,108740.0,0.03596694]
[1756543784021,0.92197664,108750.0,108740.0,0.03596694]
[1756543784427,1.10588468,108750.0,108740.0,0.01593906]
[1756543784984,1.10588468,108750.0,108740.0,0.01693906]
[1756543785399,1.10588468,108750.0,108740.0,0.01264]
[1756543785738,1.10588468,108750.0,108740.0,0.01864]
[1756543786091,1.10588468,108750.0,108740.0,0.02264]
[1756543787089,0.76789664,108750.0,108740.0,0.04983001]
[1756543787397,1.10588468,108750.0,108740.0,0.02493906]
[1756543788962,0.92197664,108750.0,108740.0,0.02493906]
[1756543789183,1.10588468,108750.0,108740.0,0.02493906]
[1756543789438,0.67798804,108750.0,108740.0,0.02493906]
[1756543789647,0.92193664,108750.0,108740.0,0.02493906]
[1756543789854,0.49404,108750.0,108740.0,0.05005991]
[1756543790063,0.92193664,108750.0,108740.0,0.02493906]
[1756543790278,0.19354619,108770.0,108740.0,0.30184402]
[1756543790508,0.04535822,108770.0,108750.0,0.27993805]
[1756543790730,0.42789664,108760.0,108750.0,0.27688805]
[1756543790922,0.42789664,108760.0,108750.0,0.27884805]
[1756543791147,0.15471825,108770.0,108750.0,0.27884805]
[1756543791388,0.42789664,108760.0,108750.0,0.30649005]
[1756543791681,0.00047825,108770.0,108750.0,0.30649005]
[1756543791896,0.42837489,108770.0,108760.0,0.18694113]
[1756543792124,0.42837489,108770.0,108760.0,0.09799001]
[1756543792534,0.24002245,108770.0,108760.0,0.09799001]
[1756543792768,0.24002245,108770.0,108760.0,0.10028864]
[1756543793030,0.85179332,108770.0,108760.0,0.09799001]
[1756543793685,0.85179332,108770.0,108760.0,0.09999001]
[1756543794539,0.85179332,108770.0,108760.0,0.12763201]
[1756543794759,1.00607332,108770.0,108760.0,0.12863201]
[1756543795676,1.00607332,108770.0,108760.0,0.16978372]
[1756543798157,1.19394751,108770.0,108760.0,0.16978372]
[1756543803370,0.33815423,108770.0,108760.0,0.16978372]
[1756543803701,1.19394751,108770.0,108760.0,0.22061684]
[1756543803830,1.19394751,108770.0,108760.0,0.16978372]
[1756543806463,1.19565751,108770.0,108760.0,0.16978372]
[1756543806754,1.19609751,108770.0,108760.0,0.16978372]
[1756543810241,0.33859423,108770.0,108760.0,0.16978372]
[1756543810450,1.19438751,108770.0,108760.0,0.16978372]
[1756543810610,1.19609751,108770.0,108760.0,0.16978372]
[1756543811421,1.04137751,108770.0,108760.0,0.16978372]
[1756543812490,1.19601751,108770.0,108760.0,0.16978372]
[1756543814258,1.04137751,108770.0,108760.0,0.16978372]
[1756543814456,1.04137751,108770.0,108760.0,0.32438372]
[1756543816226,1.04137751,108770.0,108760.0,0.16978372]
[1756543816435,1.19589751,108770.0,108760.0,0.030642]
[1756543816643,1.21313232,108770.0,108760.0,0.030642]
[1756543816842,1.21313252,108770.0,108760.0,0.030642]
[1756543818498,1.21314236,108770.0,108760.0,0.030642]
[1756543819674,1.21961204,108770.0,108760.0,0.030642]
[1756543819832,1.21961204,108770.0,108760.0,0.003]
[1756543823297,1.22068204,108770.0,108760.0,0.003]
[1756543823522,2.00845891,108770.0,108760.0,0.003]
[1756543823694,1.58056227,108770.0,108760.0,0.003]
[1756543823916,1.60820627,108770.0,108760.0,0.003]
[1756543825425,1.58832604,108770.0,108760.0,0.003]
[1756543825629,1.64327742,108770.0,108760.0,0.003]
[1756543827483,1.64327304,108770.0,108760.0,0.003]
[1756543828008,1.64327221,108770.0,108760.0,0.003]
[1756543829178,2.07116885,108770.0,108760.0,0.003]